Cogmind - Beta 10 X2 @@@ ROGUE MODE // 2020.09.05 @ 23:48:08 Player: PhenomPhear Result: Self-destructed Performance ------------- Evolutions (2) 1000 Regions Visited (5) 1000 Robots Destroyed (32) 160 Value Destroyed (836) 836 Prototype IDs (24) 480 Alien Tech Used (0) 0 Bonus (284) 284 TOTAL SCORE: 3760 Bonus ------- Aligned with FarCom 300 Friendly Fire -16 Cogmind --------- Core Integrity 496/550 Matter 270/300 Energy 150/150 System Corruption 0% Temperature Cool (9) Movement Treading (205) Ox2 Location -8/Materials Parts ------- > --- POWER (1) -------- Micro Nuclear Core > --- PROPULSION (2) --- Light Treads Armored Treads > --- UTILITY (5) ------ Improved Heat Sink Disposable Heat Sink High-capacity Storage Unit High-capacity Storage Unit Reflective Plating > --- WEAPON (3) ------- Heavy Assault Rifle Heavy Assault Rifle Gauss Rifle > --- INVENTORY (20) --- Micro Nuclear Core Micro Nuclear Core Light Treads Light Treads Light Treads Aluminum Leg Compact Wheel Improved VTOL Module Large Matter Pod (150) Improved Melee Analysis Suite Improved Propulsion Shielding Utility Shielding Light Armor Plating Light Armor Plating Assault Rifle Grenade Launcher Missile Launcher Datajack Field Lobotomy Kit Mining Laser Peak State ------------ > --- POWER ------------ Micro Nuclear Core > --- PROPULSION ------- Light Treads Armored Treads > --- UTILITY ---------- Improved Heat Sink Disposable Heat Sink High-capacity Storage Unit High-capacity Storage Unit Reflective Plating > --- WEAPON ----------- Heavy Assault Rifle Heavy Assault Rifle Gauss Rifle > --- INVENTORY -------- Micro Nuclear Core Micro Nuclear Core Light Treads Light Treads Light Treads Aluminum Leg Compact Wheel Improved VTOL Module Large Matter Pod Improved Melee Analysis Suite Improved Propulsion Shielding Utility Shielding Light Armor Plating Light Armor Plating Assault Rifle Grenade Launcher Missile Launcher Datajack Field Lobotomy Kit Mining Laser [Rating: 30] Favorites ----------- Power Light Nuclear Core Engine Light Ion Engine Power Core Light Nuclear Core Propulsion Light Treads Treads Light Treads Wheel Compact Wheel Flight Unit Improved VTOL Module Utility High-capacity Storage Unit Device Disposable Heat Sink Storage High-capacity Storage Unit Protection Light Armor Plating Weapon Heavy Assault Rifle Energy Gun Medium Laser Ballistic Gun Heavy Assault Rifle Launcher Grenade Launcher Special Weapon Field Lobotomy Kit Build | -11 -10 -10 -10 -9 -8 ------- Run | Scr Mat Min Exi Min Mat Slots Evolved 4 | . . . . . 4 Power . | . . . . . . Propulsion . | . . . . . . Utility 3 | . . . . . 3 Weapon 1 | . . . . . 1 Parts Attached 46 | 6 9 7 4 3 17 Power 4 | 1 1 . . 1 1 Engine 2 | 1 . . . 1 . Core 2 | . 1 . . . 1 Reactor . | . . . . . . Propulsion 14 | 2 4 3 . . 5 Treads 9 | . 2 3 . . 4 Leg . | . . . . . . Wheel 4 | 2 2 . . . . Hover . | . . . . . . Flight 1 | . . . . . 1 Utility 11 | 1 3 . 2 . 5 Device 2 | . . . . . 2 Storage 6 | 1 3 . 2 . . Processor . | . . . . . . Hackware . | . . . . . . Protection 3 | . . . . . 3 Artifact . | . . . . . . Weapon 17 | 2 1 4 2 2 6 Energy Gun 2 | 1 . . . . 1 Energy Cannon . | . . . . . . Ballistic Gun 11 | 1 1 4 1 1 3 Ballistic Cannon . | . . . . . . Launcher 3 | . . . . 1 2 Special Weapon 1 | . . . 1 . . Impact Weapon . | . . . . . . Slashing Weapon . | . . . . . . Piercing Weapon . | . . . . . . Special Melee Weapon . | . . . . . . Unidentified Prototypes 2 | . . . 1 . 1 Parts Lost 4 | . 2 1 . 1 . Power 1 | . . . . 1 . Propulsion 1 | . 1 . . . . Utility . | . . . . . . Weapon 2 | . 1 1 . . . Highest Loss Streak 1 | . 1 1 . 1 . Average Slot Usage (%) 97 | . 100 100 92 99 99 Engine 4 | . 7 . . 13 3 Core 8 | . 6 14 14 . 5 Treads 23 | . 20 23 28 28 18 Wheel 2 | . 7 4 . . . Device 4 | . . . . . 17 Storage 25 | . 28 28 28 28 18 Protection 2 | . . . . . 8 Energy Gun 2 | . 8 . . . 3 Ballistic Gun 22 | . 19 28 20 27 22 Naked Turns . | . . . . . . Heaviest Build 86 | 11 57 59 75 73 86 Greatest Support 40 | 26 40 40 40 40 40 Greatest Overweight (x) 3 | . 2 2 1 1 3 Average Overweight (x) 1 | . 1 1 1 1 1 Largest Inventory Capacity 20 | 6 18 18 20 20 20 Average Capacity 18 | 5 17 18 18 20 20 Most Carried 20 | 6 15 17 18 17 20 Average Carried 15 | 2 10 16 17 16 18 Final Capacity 20 | 6 18 18 20 20 20 Final Carried 20 | 6 15 17 17 17 20 Class Distribution -------------------- 31% | Scavenger-Mutant 27% | Scavenger-Skirmisher 24% | Mutant 16% | Hauler-Mutant Dominant Class ---------------- Mutant | -10/Materials Scavenger-Mutant | -10/Mines Scavenger-Mutant | -10/Exiles Hauler-Mutant | -9/Mines Scavenger-Skirmisher | -8/Materials Resources | -11 -10 -10 -10 -9 -8 ----------- Run | Scr Mat Min Exi Min Mat Matter Collected 1179 | 196 321 144 . 40 478 Remotely . | . . . . . . Salvage Created 1090 | . 551 . . 17 522 Parts 71 | . 33 . . 2 36 Haulers Intercepted 2 | . . . . . 2 Recyclers Shooed 1 | . 1 . . . . Parts Field Recycled . | . . . . . . Retrieved Matter . | . . . . . . Parts Self-Destructed . | . . . . . . Prevented . | . . . . . . Kills | -11 -10 -10 -10 -9 -8 ------- Run | Scr Mat Min Exi Min Mat Combat Hostiles Destroyed 23 | . 13 . . 3 7 Guns 17 | . 13 . . . 4 AOE 6 | . . . . 3 3 Classes Destroyed 9 | . 3 . . . 6 Worker 3 | . 2 . . . 1 Builder 1 | . . . . . 1 Hauler 2 | . . . . . 2 Recycler 2 | . . . . . 2 Watcher 1 | . . . . . 1 Swarmer 6 | . 3 . . 3 . Grunt 13 | . 10 . . . 3 Sentry 2 | . . . . . 2 Hunter 2 | . . . . . 2 Best Kill Streak 5 | . 4 . . 3 5 Combat Bots Only 4 | . 3 . . 3 4 Max Kills in Single Turn 3 | . 1 . . 2 3 Gunslinging . | . . . . . . Exploded 3 | . . . . 2 3 Melee . | . . . . . . Uniques/NPCs Destroyed . | . . . . . . Combat | -11 -10 -10 -10 -9 -8 -------- Run | Scr Mat Min Exi Min Mat Damage Taken 1090 | . 646 28 . 65 351 Core 137 | . 77 . . 6 54 Absorbed by Shields . | . . . . . . Core Remaining (%) 83 | 100 . . . 66 . Volleys Fired 71 | . 41 1 . 2 27 Largest 3 | . 2 2 . 1 3 Hottest 86 | . 70 40 . 30 86 Shots Fired 158 | . 82 2 . 2 72 Gun 153 | . 82 2 . . 69 Cannon . | . . . . . . Launcher 5 | . . . . 2 3 Special . | . . . . . . Kinetic 124 | . 62 2 . . 60 Thermal 29 | . 20 . . . 9 Explosive 5 | . . . . 2 3 Electromagnetic . | . . . . . . Robot Hit Streak 16 | . 16 . . . 7 Robot Miss Streak 4 | . 2 2 . . 4 Penetration Max 1 | . . . . . 1 Secondary Targets 1 | . 1 . . . . Max Gunslinging Chain 1 | . 1 . . . . Shots Hit Robots 97 | . 55 . . . 42 Core Hits 54 | . 27 . . 3 24 Critical Hits 3 | . . . . . 3 Critical Kills 1 | . . . . . 1 Critical Parts Destroyed 2 | . . . . . 2 Melee Attacks . | . . . . . . Impact . | . . . . . . Slashing . | . . . . . . Piercing . | . . . . . . Sneak Attacks . | . . . . . . Combat Hostiles . | . . . . . . Follow-up Attacks . | . . . . . . Damage Inflicted 1850 | . 691 16 . 186 957 Guns 1276 | . 679 16 . . 581 Cannons . | . . . . . . Explosions 550 | . . . . 186 364 Melee . | . . . . . . Ramming 24 | . 12 . . . 12 Kinetic 1099 | . 554 16 . . 529 Thermal 177 | . 125 . . . 52 Explosive 550 | . . . . 186 364 Electromagnetic . | . . . . . . Impact . | . . . . . . Slashing . | . . . . . . Piercing . | . . . . . . Highest Corruption . | . . . . . . Average Corruption . | . . . . . . Corruption Purged . | . . . . . . Overload Shots . | . . . . . . Overflow Damage 3 | . . . . 3 . Projectiles . | . . . . . . Explosions 3 | . . . . 3 . Melee . | . . . . . . Knockbacks 1 | . 1 . . . . Impact 1 | . 1 . . . . Kinetic . | . . . . . . Secondary . | . . . . . . Self-Inflicted Damage 40 | . . . . 40 . Shots 2 | . . . . 2 . Rammed 3 | . 2 . . . 1 Targets Rammed 4 | . 2 . . . 2 Kicked . | . . . . . . Crushed 1 | . . . . . 1 Highest Temperature 198 | . 198 4 . . . Average Temperature 66 | . 67 3 . . . Received Heat Transfer 408 | . 327 9 . . 72 Siege Activations . | . . . . . . Robots Corrupted . | . . . . . . Combat Hostiles . | . . . . . . Parts Fried . | . . . . . . Impact Corruptions . | . . . . . . Robots Melted . | . . . . . . Combat Hostiles . | . . . . . . Parts Melted . | . . . . . . Heat Transferred 495 | . 370 . . . 125 Parts Sabotaged . | . . . . . . Parts Stolen . | . . . . . . Parts Stripped . | . . . . . . Power Chain Reactions . | . . . . . . Missiles Intercepted . | . . . . . . Alert | -11 -10 -10 -10 -9 -8 ------- Run | Scr Mat Min Exi Min Mat Peak Influence 260 | . 260 101 . 60 171 Average Influence 81 | . 84 91 . 59 90 Maximum Alert Level 1 | . 1 . . . . Low Security (%) 96 | 100 86 100 . 100 100 Level 1 3 | . 13 . . . . Level 2 . | . . . . . . Level 3 . | . . . . . . Level 4 . | . . . . . . Level 5 . | . . . . . . High Security . | . . . . . . Max Security . | . . . . . . Squads Dispatched 5 | . 3 . . . 2 Investigation 2 | . 1 . . . 1 Extermination . | . . . . . . Reinforcement 3 | . 2 . . . 1 Assault . | . . . . . . Garrison . | . . . . . . Intercept . | . . . . . . Construction Impeded . | . . . . . . Haulers Reinforced . | . . . . . . Stealth | -11 -10 -10 -10 -9 -8 --------- Run | Scr Mat Min Exi Min Mat Distress Signals 4 | . 3 . . . 1 Communications Jammed . | . . . . . . Distress Signals . | . . . . . . Times Spotted 41 | . 24 1 . 3 13 Peak Tracking Total 5 | . 5 1 . 3 4 Tactical Retreats 2 | . 2 . . . . Traps | -11 -10 -10 -10 -9 -8 ------- Run | Scr Mat Min Exi Min Mat Traps Triggered 2 | . 1 . . . 1 Indirectly . | . . . . . . Trap Hack Attempts . | . . . . . . Triggered . | . . . . . . Disarmed . | . . . . . . Reprogrammed . | . . . . . . Reused . | . . . . . . Traps Extracted . | . . . . . . Installed . | . . . . . . Triggered . | . . . . . . Machines | -11 -10 -10 -10 -9 -8 ---------- Run | Scr Mat Min Exi Min Mat Machines Disabled 2 | . . . . . 2 Max in Single Turn 1 | . . . . . 1 Machines Sabotaged . | . . . . . . Garrisons Compromised . | . . . . . . Overloaded Fab Kills . | . . . . . . Fab Network Shutdowns . | . . . . . . Hacking | -11 -10 -10 -10 -9 -8 --------- Run | Scr Mat Min Exi Min Mat Machines Accessed 4 | . 2 . 1 . 1 Terminals 3 | . 2 . . . 1 Fabricators . | . . . . . . Repair Stations . | . . . . . . Recycling Units . | . . . . . . Scanalyzers . | . . . . . . Garrison Access . | . . . . . . Total Hacks 8 | . 5 . 1 . 2 Successful 4 | . 2 . 1 . 1 Failed 4 | . 3 . . . 1 Catastrophic . | . . . . . . Database Lockouts . | . . . . . . Manual 6 | . 5 . 1 . . Terminals 7 | . 5 . . . 2 Fabricators . | . . . . . . Repair Stations . | . . . . . . Recycling Units . | . . . . . . Scanalyzers . | . . . . . . Garrison Access . | . . . . . . Terminal Hacks 2 | . . . 1 . 1 Zone Layout 1 | . . . . . 1 EX-Prototype ID Bank 1 | . . . 1 . . Fabricator Hacks . | . . . . . . Repair Station Hacks . | . . . . . . Recycling Unit Hacks . | . . . . . . Scanalyzer . | . . . . . . Garrison Access Hacks . | . . . . . . Unauthorized Hacks 2 | . 2 . . . . Terminals 2 | . 2 . . . . Botnet 1 | . 1 . . . . Disrupt 1 | . 1 . . . . Fabricators . | . . . . . . Repair Stations . | . . . . . . Recycling Units . | . . . . . . Scanalyzers . | . . . . . . Garrison Access . | . . . . . . Data Cores Recovered . | . . . . . . Used . | . . . . . . Hacking Detections 3 | . 2 . . . 1 Full Trace Events . | . . . . . . Feedback Events . | . . . . . . Feedback Blocked . | . . . . . . Robot Schematics Acquired . | . . . . . . Robots Built . | . . . . . . Matter . | . . . . . . Time . | . . . . . . Total Robot Build Rating . | . . . . . . Part Schematics Acquired . | . . . . . . Parts Built . | . . . . . . Matter . | . . . . . . Time . | . . . . . . Total Part Build Rating . | . . . . . . Parts Repaired . | . . . . . . Time . | . . . . . . Parts Recycled . | . . . . . . Recycled Matter . | . . . . . . Retrieved Matter . | . . . . . . Retrieved Components . | . . . . . . Parts Scanalyzed . | . . . . . . Part Schematics Acquired . | . . . . . . Parts Damaged . | . . . . . . Bothacking | -11 -10 -10 -10 -9 -8 ------------ Run | Scr Mat Min Exi Min Mat Used RIF Installer . | . . . . . . Robots Hacked . | . . . . . . Non-combat . | . . . . . . Combat . | . . . . . . Robot Hacks Applied . | . . . . . . Relay Couplers Released . | . . . . . . Robots Rewired . | . . . . . . Allies Hacked . | . . . . . . Hacks Repelled . | . . . . . . Allies | -11 -10 -10 -10 -9 -8 -------- Run | Scr Mat Min Exi Min Mat Total Allies 2 | . . 2 . . . Largest Group 2 | . . 2 2 . . Highest-Rated Group 45 | . . 45 45 . . Highest-Rated Ally 31 | . . 31 31 . . Total Orders . | . . . . . . Ally Attacks . | . . . . . . Total Damage . | . . . . . . Kills . | . . . . . . Allies Corrupted . | . . . . . . Allies Melted . | . . . . . . Intel | -11 -10 -10 -10 -9 -8 ------- Run | Scr Mat Min Exi Min Mat Robot Analysis Total . | . . . . . . Derelict Logs Recovered 1 | . . 1 . . . Drone Launches . | . . . . . . Drone Recoveries . | . . . . . . Exploration | -11 -10 -10 -10 -9 -8 ------------- Run | Scr Mat Min Exi Min Mat Turns Passed 3294 | 63 724 375 841 391 900 Spaces Moved 1691 | 55 365 210 462 213 386 Core 3 | 3 . . . . . Treads 1458 | . 225 172 462 213 386 Legs . | . . . . . . Wheels 230 | 52 140 38 . . . Hover . | . . . . . . Flight . | . . . . . . Fastest Speed 50 | 50 90 110 180 180 180 Average Speed 172 | 88 151 168 180 180 193 Slowest Speed 220 | 100 180 200 180 180 220 Overloaded Moves . | . . . . . . Propulsion Burnouts . | . . . . . . Robots Hopped . | . . . . . . Cave-ins Triggered . | . . . . . . Exploration Rate (%) 43 | 3 56 41 77 62 23 Regions Visited 5 Branch Regions 3 Pre-discovered Areas . | . . . . . . Known Exits Taken . | . . . . . . Unknown Exits Taken 5 | 1 1 1 1 1 . Scrap Searched 2 | . . 1 . 1 . Spaces Dug 16 | . . . . 16 . Terrain Destroyed 28 | . . . . 16 12 Melee . | . . . . . . Projectile . | . . . . . . AOE 28 | . . . . 16 12 Actions | -11 -10 -10 -10 -9 -8 --------- Run | Scr Mat Min Exi Min Mat Total 1914 | 66 448 229 473 218 480 Wait 59 | . 23 7 . . 29 Move 1686 | 54 364 209 461 212 386 Hop . | . . . . . . Pick Up 29 | 6 9 2 3 1 8 Fast Attach 13 | 6 1 1 1 . 4 Attach 8 | . 2 1 1 1 3 Detach 1 | . . . . . 1 Swap 25 | . 6 5 2 2 10 Drop 18 | . . 3 5 . 10 Fire 71 | . 41 1 . 2 27 Melee . | . . . . . . Ram . | . . . . . . Kick . | . . . . . . Crush 4 | . 2 . . . 2 Escape Stasis . | . . . . . . Rewire . | . . . . . . Trap . | . . . . . . Miscellaneous . | . . . . . . Route ------- -11/Scrapyard -10/Materials (discovered 3 exits: [*Mat] / [*Min x2]) -10/Mines -10/Exiles (discovered 2 exits: [*Min x2]) -9/Mines -8/Materials (discovered 1 exit: Fac) History --------- Turn | Location | Event 9 | -11/Scrapyard | Discovered new exit (range 16) 64 | -11/Scrapyard | Entered Materials 300 | -10/Materials | Build established: Mutant 341 | -10/Materials | Discovered new exit (range 5) 638 | -10/Materials | Discovered new exit (range 12) 775 | -10/Materials | Discovered new exit (range 6) 788 | -10/Materials | Entered Mines 819 | -10/Mines | Joined a pair of Derelicts in attacking an 0b10 outpost 820 | -10/Mines | Learned 2 Materials zone layouts 1114 | -10/Mines | Build established: Scavenger-Mutant 1147 | -10/Mines | Deemed a non-threat by the Exiles lab entrance 1147 | -10/Mines | Discovered new exit (range 5) 1163 | -10/Mines | Entered Exiles 1163 | -10/Exiles | Accompanied by 2 allies 1190 | -10/Exiles | Discovered new exit (range 15) 1193 | -10/Exiles | Led the pair of lost Derelicts to a safe place 1219 | -10/Exiles | Met 8R-AWN 1250 | -10/Exiles | Met EX-HEX 1306 | -10/Exiles | Met EX-BIN 1327 | -10/Exiles | Aligned with FarCom system 1329 | -10/Exiles | Given EX-Vault access code 1372 | -10/Exiles | Opened EX-Vault 1385 | -10/Exiles | Found Prototype Special Weapon 1386 | -10/Exiles | Identified Field Lobotomy Kit 1399 | -10/Exiles | Found Trap Reconfigurator 1434 | -10/Exiles | Warned to stay clear of 0b10 Research branches 1484 | -10/Exiles | Met EX-DEC 1543 | -10/Exiles | Visited The Gauntlet 1977 | -10/Exiles | Discovered new exit (range 14) 2004 | -10/Exiles | Left Exiles lab with Field Lobotomy Kit 2004 | -10/Exiles | Entered Mines 2088 | -9/Mines | Met a Derelict bent on vengeance 2317 | -9/Mines | Build established: Hauler-Mutant 2365 | -9/Mines | Discovered new exit (range 9) 2395 | -9/Mines | Entered Materials 2395 | -8/Materials | Evolved 4 slots: Utility x3, Weapon x1 2396 | -8/Materials | Identified exit to Factory 2694 | -8/Materials | Build established: Scavenger-Skirmisher 3295 | -8/Materials | Self-destructed Last Messages --------------- 03064_ Dropped Lgt. Treads. 03141_ Acquired 10 matter. 03248_ Slug penetrates W-25 Informer. 03248_ Destroyed Imp. Hover Unit. 03248_ U-05 Engineer destroyed. 03251_ K-01 Serf collects debris. 03251_ Slug penetrates W-25 Informer. 03251_ W-25 Informer destroyed. 03254_ K-01 Serf collects debris. 03256_ Triggered Alarm Trap. 03256_ An alarm sounds. 03256_ ALERT: Alarm triggered, dispatching investigation squad. 03258_ Acquired 20 matter. 03260_ K-01 Serf collects debris. 03277_ Slug penetrates Wall. 03281_ R-06 Scavenger collects Visual Processing Unit. 03283_ Slug penetrates Wall. 03284_ R-06 Scavenger collects Imp. Signal Interpreter. 03288_ R-06 Scavenger collects Lgt. Ion Engine. 03292_ R-06 Scavenger collects Wheel. Map ----- +----------------------------------------------------+ | ##??????????#########????????????? ## # | | ######??????????????????????????? ## # | | T #??????????????????????????? ## # | | " #??????????????????????????? ## # | | ### #?????????????# # ??????????????? | | ##### #?????????????############# ??????????????? | | # #????????????????????????# ??????????????? | | + #?????????????############ ??????????????? | | # ###########???# ## Y?????????????? | | ## # #???# ! ## ??????????????? | | """ ## # #???# ## ??????????????? | | """ ## # ##### ####??????????????? | | """ ## # """ """ # # """ # ??????????????? | | ## # """ """ ##### "Y" """ # ??????????????? | | ######%# """ """ #???# """ """ # ??????????????? | | ?????# # #???# # ??????????????? | | ###??# # #???####+###### ??????????????? | | #### #####+########## #??# ??????????????? | | #??# "T??????????????? | | % #??# ""??????????????? | | #??####??????????????? | | ##### ############### #????????????????????? | | ##???# #???????######## ##????????????????????? | | #????# #???????# = # ###########???????????? | | #????# #???????#"S # # !#???????????? | | ######+####????#""" + @ # #???????????? | | # #????# "" # =|# #???????????? | | # #????# # r + """ """?????????????? | | # #????# # # """ """ #???????????? | | # % #???????????# # """ """ #???????????? | | + #???????????# # #???????????? | | # #???????????#u %###########???????????? | | ## #???????????+ ?????????????????????? | | ?# #???????????# g?????????????????????? | | ?#####+#####???????????# ????????????????????? | | ?????# #???????????????# ????????????????????? | | ?????# #???????????????# g ???????????????????? | | ?????# #???????????????# ???????????????????? | | ?????# #???????????????# g ??????????????????? | | ?????# #???????????????# ??????????????????? | | ?????+ ???????????????# ?????????????????? | | ?????# ???????????????# %"" ?????????????????? | | ?????# ??????????????? ""? ???????????????????? | | ?????# ??????????????? ???????????????????????? | | ?????# #???????????????????????????????????????? | | ????? #???????????????????????????????????????? | | ????? #???????????????????????????????????????? | | ????? #???????????????????????????????????????? | | ????? #???????????????????????????????????????? | | ????? ##???????????????????????????????????????? | +----------------------------------------------------+ Best States ------------- Heat Dissipation 45 Coolant Potential 50 Energy Generation 15 Energy Capacity 160 Matter Stores 300 Matter Capacity 300 Sight Range 16 Terrain Scan Density 10 Armor Coverage 150 Resistance: TH 10 Evasion (%) 42 Recoil Reduction 2 Item Schematics ----------------- None Robot Schematics ------------------ None Fabricated ------------ Nothing Alien Tech Used ----------------- None Achievements -------------- None Challenges ------------ None Game ------ Seed EnhancedMetafiberRay Manual? 0 Play Time 00:20:43 Cumulative 1063.6 hours Start 2020.09.01 @ 16:06:31 End 2020.09.05 @ 23:48:08 Sessions 3 Manual Loads 0 Difficulty Rogue Special Mode None Game No. 653 Rogue 653 Adventurer 0 Explorer 0 Win Type - Total 18 Types 10/1/4/3/0/0/0 Lore% 92 Gallery% 93 Achievement% 81 Wizard Run 0 Options --------- ASCII 0 Keyboard 0 Movement Mouse Keybinds 0 Fullscreen 1 Font 24/Smallcaps Map View 76x50 Tactical HUD 1 Map Filters NONE Filters NONE Steam 1 RUN: 5ae2b249-1018-4036-b37f-9b0d91bc06cd